Cogmind - Beta 16 @@@ ROGUE MODE // 2025.12.19 @ 17:38:18 Player: Anting Result: Destroyed by XK-WRO(j) with Overtuned Pulse Rifle Performance ------------- Evolutions (0) 0 Regions Visited (4) 800 Robots Destroyed (40) 200 Value Destroyed (1034) 1034 Prototype IDs (26) 520 Alien Tech Used (0) 0 Bonus (800) 800 TOTAL SCORE: 3354 Bonus ------- Registered with UFD 300 Met Optimus in HQ 500 Cogmind --------- Core Integrity 0/250 Matter 300/300 Energy 265/265 System Corruption 0% Temperature Cool (12) Movement Rolling (125) Ox2 Location -8/Scraptown Parts ------- > --- POWER (1) -------- Improved Ion Engine > --- PROPULSION (2) --- Compact Wheel Armored Wheel > --- UTILITY (2) ------ High-capacity Storage Unit Improved Medium Armor Plating > --- WEAPON (2) ------- Rocket Launcher LU-1G1's Laser Shovel > --- INVENTORY (20) --- Light Nuclear Core Cesium-ion Thruster Cesium-ion Thruster Xenon Bombardment Thruster Xenon Bombardment Thruster Improved Sensor Array Improved Signal Interpreter Experimental Terrain Scan Processor ID Mask Gun Armor Makeshift Hacking Suite Makeshift Hacking Suite Makeshift Hacking Suite A0-MCA's Component Scanner Tech Extrapolator Improved Trap Extractor (3/6 Vortex) Master Drone Bay (1/1) CPS Tube (2) Greatsword Peak State ------------ > --- POWER ------------ Improved Ion Engine > --- PROPULSION ------- Compact Wheel Armored Wheel > --- UTILITY ---------- High-capacity Storage Unit Improved Medium Armor Plating > --- WEAPON ----------- Rocket Launcher LU-1G1's Laser Shovel > --- INVENTORY -------- Light Nuclear Core Cesium-ion Thruster Cesium-ion Thruster Xenon Bombardment Thruster Xenon Bombardment Thruster Advanced Heat Sink Improved Sensor Array Improved Signal Interpreter Experimental Terrain Scan Processor Gun Armor Makeshift Hacking Suite Makeshift Hacking Suite Makeshift Hacking Suite A0-MCA's Component Scanner Improved Trap Extractor Master Drone Bay CPS Tube Greatsword [Rating: 27] Favorites ----------- Power Subdweller Power Source Engine Subdweller Power Source Propulsion Light Treads Treads Light Treads Leg Aluminum Leg Wheel Compact Wheel Utility High-capacity Storage Unit Device Seismic Detector Storage High-capacity Storage Unit Protection Improved Medium Armor Plating Weapon Subdweller Beam Cannon Energy Gun Small Laser Energy Cannon Subdweller Beam Cannon Ballistic Gun Subdweller Machine Gun Launcher Rocket Launcher Special Weapon LU-1G1's Laser Shovel Impact Weapon Makeshift Hammer Build | -11 -10 -10 -8 -8 ------- Run | Yrd Mat Sub Rec Scr Slots Evolved . | . . . . . Power . | . . . . . Propulsion . | . . . . . Utility . | . . . . . Weapon . | . . . . . Parts Attached 37 | 7 2 18 1 9 Power 5 | 1 . 3 . 1 Engine 5 | 1 . 3 . 1 Core . | . . . . . Reactor . | . . . . . Propulsion 9 | 2 . 4 1 2 Treads 5 | . . 4 1 . Leg 2 | 2 . . . . Wheel 2 | . . . . 2 Hover . | . . . . . Flight . | . . . . . Utility 7 | 2 1 1 . 3 Device 3 | 1 . . . 2 Storage 3 | 1 1 1 . . Processor . | . . . . . Hackware . | . . . . . Protection 1 | . . . . 1 Artifact . | . . . . . Weapon 16 | 2 1 10 . 3 Energy Gun 2 | 1 . 1 . . Energy Cannon 6 | . . 6 . . Ballistic Gun 3 | 1 . 1 . 1 Ballistic Cannon . | . . . . . Launcher 2 | . 1 . . 1 Special Weapon 1 | . . . . 1 Impact Weapon 2 | . . 2 . . Slashing Weapon . | . . . . . Piercing Weapon . | . . . . . Special Melee Weapon . | . . . . . Unidentified Prototypes 2 | . . . . 2 Parts Lost 6 | . . 5 1 . Power 2 | . . 2 . . Propulsion 3 | . . 2 1 . Utility 1 | . . 1 . . Weapon . | . . . . . Highest Loss Streak 2 | . . 2 1 . To Critical Strikes . | . . . . . Average Backups 14 | 3 8 12 16 16 Power . | . . . 1 . Propulsion 4 | 1 3 3 4 4 Utility 3 | . . 2 4 6 Weapon 5 | . 4 6 7 4 Tool/Special . | . . . . . Unused Backups 47 | . 1 9 1 36 Power 4 | . 1 1 . 2 Propulsion 15 | . . 4 . 11 Utility 21 | . . 2 1 18 Weapon 6 | . . 2 . 4 Tool/Special 1 | . . . . 1 Average Slot Usage (%) 88 | . 100 87 84 89 Engine 13 | . 14 12 14 14 Treads 22 | . . 25 27 20 Leg 3 | . 28 2 . . Wheel 2 | . . . . 7 Device 3 | . 14 3 . 3 Storage 14 | . 14 14 14 14 Energy Gun 1 | . 14 1 . . Energy Cannon 15 | . . 16 22 13 Ballistic Gun 4 | . 13 7 . . Launcher 1 | . . . . 3 Impact Weapon 5 | . . 2 5 10 Peak Build Rating 27 | 7 8 17 17 27 Average Rating 14 | 4 7 12 15 18 On Entrance 9 | . 7 8 16 17 Avg Prop Armor Cover (%) . | . . . . . Naked Turns . | . . . . . Heaviest Build 66 | 13 28 61 61 66 Greatest Support 40 | 20 20 40 40 40 Greatest Overweight (x) 20 | 3 1 1 3 20 Average Overweight (x) . | . . . 1 1 Largest Inventory Capacity 20 | 8 15 20 20 20 Average Capacity 17 | 7 9 15 20 20 Most Carried 20 | 4 14 19 20 20 Average Carried 16 | 3 8 15 19 18 Final Capacity 20 | 8 15 20 20 20 Final Carried 20 | 4 14 19 20 20 Class Distribution -------------------- 62% | Mutant 36% | Commander-Mutant Dominant Class ---------------- Mutant | -10/Materials Mutant | -10/Subcaves Mutant | -8/Recycling Commander-Mutant | -8/Scraptown Resources | -11 -10 -10 -8 -8 ----------- Run | Yrd Mat Sub Rec Scr Matter Collected 683 | 222 112 239 20 90 Remotely . | . . . . . Salvage Created 1408 | 12 309 898 189 . Parts 101 | 2 27 62 10 . Haulers Intercepted 1 | . 1 . . . Recyclers Shooed 1 | . 1 . . . Parts Field Recycled . | . . . . . Retrieved Matter . | . . . . . Parts Self-Destructed 11 | . . 11 . . Prevented . | . . . . . Parts Restored . | . . . . . Kills | -11 -10 -10 -8 -8 ------- Run | Yrd Mat Sub Rec Scr Combat Hostiles Destroyed 31 | . 6 22 3 . Guns 3 | . 3 . . . Cannons 20 | . . 19 1 . AOE 6 | . 3 3 . . Classes Destroyed 10 | 1 5 3 1 . Worker 2 | . 2 . . . Builder 3 | . 2 . 1 . Tunneler 1 | 1 . . . . Hauler 1 | . 1 . . . Recycler 2 | . 2 . . . Swarmer 10 | . 6 4 . . Grunt 2 | . . 2 . . Sentry 3 | . . 1 2 . Programmer 1 | . . . 1 . Subdweller 15 | . . 15 . . Best Kill Streak 4 | 1 4 3 1 . Combat Bots Only 3 | . 3 3 1 . Max Kills in Single Turn 2 | 1 2 2 1 . Gunslinging . | . . . . . Exploded 2 | . 2 2 . . Melee . | . . . . . Uniques/NPCs Destroyed . | . . . . . Combat | -11 -10 -10 -8 -8 -------- Run | Yrd Mat Sub Rec Scr Hostile Shots Fired 113 | . 19 82 11 1 Missed 27 | . 4 20 3 . Hits 86 | . 15 62 8 1 Projectile 86 | . 15 62 8 1 Critical Strikes 3 | . . 3 . . Damage Taken 1357 | . 113 1096 118 30 Core 250 | . 48 164 14 24 Absorbed by Shields . | . . . . . Core Remaining (%) 100 | 100 . . . . Volleys Fired 112 | 3 30 68 8 3 Largest 2 | 2 2 2 2 1 Hottest 160 | 60 60 160 160 80 Shots Fired 182 | 6 58 100 15 3 Gun 94 | 6 56 32 . . Cannon 84 | . . 66 15 3 Launcher 4 | . 2 2 . . Special . | . . . . . Kinetic 44 | 3 28 13 . . Thermal 134 | 3 28 85 15 3 Explosive 4 | . 2 2 . . Electromagnetic . | . . . . . Robot Hit Streak 16 | 1 6 16 4 . Robot Miss Streak 6 | 1 6 5 1 . Penetration Max . | . . . . . Secondary Targets . | . . . . . Shots Hit Robots 108 | 3 29 66 10 . Core Hits 51 | 1 19 28 2 1 Critical Kills 3 | . 1 . 2 . Critical Parts Destroyed 1 | . . 1 . . Critical Strikes 4 | . 1 1 2 . Meltdown 2 | . . . 2 . Destroy 2 | . 1 1 . . Melee Attacks 17 | . . 11 6 . Impact 17 | . . 11 6 . Slashing . | . . . . . Piercing . | . . . . . Sneak Attacks 1 | . . . 1 . Combat Hostiles . | . . . . . Follow-up Attacks . | . . . . . Damage Inflicted 2794 | 34 595 1751 402 12 Guns 689 | 34 311 344 . . Cannons 1491 | . . 1267 224 . Explosions 415 | . 275 140 . . Melee 160 | . . . 160 . Ramming 39 | . 9 . 18 12 Kinetic 180 | . 105 75 . . Thermal 2000 | 34 206 1536 224 . Explosive 415 | . 275 140 . . Electromagnetic . | . . . . . Impact 160 | . . . 160 . Slashing . | . . . . . Piercing . | . . . . . Highest Corruption . | . . . . . Average Corruption . | . . . . . Corruption Purged . | . . . . . Corruption Blocked . | . . . . . Overload Shots . | . . . . . Overflow Damage 123 | . 38 . 85 . Projectiles 15 | . . . 15 . Explosions 38 | . 38 . . . Melee 70 | . . . 70 . Knockbacks 1 | . . . 1 . Impact 1 | . . . 1 . Kinetic . | . . . . . Secondary . | . . . . . Self-Inflicted Damage 26 | . . 20 . 6 Shots 1 | . . 1 . . Rammed 6 | . . . 5 1 Targets Rammed 11 | . 5 . 5 1 Kicked 5 | . 5 . . . Crushed . | . . . . . Highest Temperature 369 | 40 40 369 261 58 Average Temperature 58 | 19 19 69 104 29 Received Heat Transfer 515 | . . 485 18 12 Effects 1 | . . 1 . . Damage (minor) 1 | . . 1 . . Siege Activations . | . . . . . Martial Activations . | . . . . . Shielding Activations . | . . . . . Robots Disrupted . | . . . . . Combat Hostiles . | . . . . . Robots Corrupted 1 | . . . 1 . Combat Hostiles . | . . . . . Parts Fried 1 | . . . 1 . Impact Corruptions 2 | . . . 2 . Robots Melted 2 | . . . 2 . Combat Hostiles 2 | . . . 2 . Parts Melted 9 | . . 4 5 . Heat Transferred 2885 | 75 450 2064 296 . Parts Sabotaged . | . . . . . Parts Stolen . | . . . . . Parts Stripped . | . . . . . Power Chain Reactions . | . . . . . Alert | -11 -10 -10 -8 -8 ------- Run | Yrd Mat Sub Rec Scr Maximum Alert Level . | . . . . . Low Security (%) 100 | 100 100 . 100 . Level 1 . | . . . . . Level 2 . | . . . . . Level 3 . | . . . . . Level 4 . | . . . . . Level 5 . | . . . . . High Security . | . . . . . Max Security . | . . . . . Peak Influence 111 | 5 111 . 63 . Initial 28 | . . . 28 . Average 18 | . 24 . 16 . Influence Increases 905 | 5 233 300 367 . Destroy 0b10 Robot/C 320 | . 120 140 60 . Destroy 0b10 Robot/NC 50 | 5 35 . 10 . Destroy Leader 32 | . 22 10 . . Allied During Kill 2 | . . . 2 . Successful Hack 46 | . . . 46 . Select Force Hacks 150 | . . . 150 . Disable Machine 30 | . 30 . . . Destroy Structure 110 | . 11 . 99 . Lose Combat Pursuer 165 | . 15 150 . . Influence Decreases 905 | 5 221 252 414 13 Entered New Map 52 | . . 7 32 13 Time Decay 813 | 5 221 215 372 . Lost Part 40 | . . 30 10 . Squads Dispatched 1 | . 1 . . . Investigation 1 | . 1 . . . Extermination . | . . . . . Reinforcement . | . . . . . Assault . | . . . . . Garrison . | . . . . . Intercept . | . . . . . Searches Triggered . | . . . . . Construction Impeded . | . . . . . Haulers Reinforced . | . . . . . Active Scanning Responses . | . . . . . Cargo Convoy Interrupts . | . . . . . Stealth | -11 -10 -10 -8 -8 --------- Run | Yrd Mat Sub Rec Scr Distress Signals 1 | . 1 . . . Communications Jammed . | . . . . . Distress Signals . | . . . . . Times Spotted 45 | . 9 26 3 7 Peak Tracking Total 5 | . 5 3 1 4 Tactical Retreats 4 | . 1 3 . . Traps | -11 -10 -10 -8 -8 ------- Run | Yrd Mat Sub Rec Scr Traps Triggered 1 | . 1 . . . Indirectly . | . . . . . Trap Hack Attempts . | . . . . . Triggered . | . . . . . Disarmed . | . . . . . Reprogrammed . | . . . . . Reused . | . . . . . Traps Extracted . | . . . . . Installed . | . . . . . Triggered . | . . . . . Most Traps Carried 3 | . . . . 3 Machines | -11 -10 -10 -8 -8 ---------- Run | Yrd Mat Sub Rec Scr Machines Disabled 7 | . 2 1 . 4 Max in Single Turn 2 | . 2 1 . 1 Machines Repaired . | . . . . . Machines Dismantled . | . . . . . Machines Sabotaged . | . . . . . Overloaded Fab Kills . | . . . . . Hacking | -11 -10 -10 -8 -8 --------- Run | Yrd Mat Sub Rec Scr Machines Accessed 16 | . 1 2 11 2 Terminals 7 | . 1 . 6 . Fabricators . | . . . . . Repair Stations . | . . . . . Recycling Units 5 | . . . 5 . Scanalyzers . | . . . . . Garrison Access . | . . . . . Total Hacks 49 | . 3 5 33 8 Successful 31 | . . 5 18 8 Failed 18 | . 3 . 15 . Catastrophic . | . . . . . Database Lockouts . | . . . . . Manual 25 | . 3 . 22 . Terminals 30 | . 3 . 27 . Fabricators . | . . . . . Repair Stations . | . . . . . Recycling Units 6 | . . . 6 . Scanalyzers . | . . . . . Garrison Access . | . . . . . Terminal Hacks 18 | . . 5 5 8 Record 4 | . . 4 . . Part Schematic 2 | . . . 2 . Robot Schematic 1 | . . . 1 . Robot Analysis 8 | . . . 1 7 Terminal Index 1 | . . . 1 . Proto ID Catalog 2 | . . 1 . 1 Fabricator Hacks . | . . . . . Repair Station Hacks . | . . . . . Recycling Unit Hacks . | . . . . . Scanalyzer . | . . . . . Garrison Access Hacks . | . . . . . Unauthorized Hacks 13 | . . . 13 . Terminals 8 | . . . 8 . Botnet 3 | . . . 3 . Skim 5 | . . . 5 . Fabricators . | . . . . . Repair Stations . | . . . . . Recycling Units 5 | . . . 5 . Tunnel 5 | . . . 5 . Scanalyzers . | . . . . . Garrison Access . | . . . . . Data Cores Recovered . | . . . . . Used . | . . . . . Hacking Detections 7 | . 1 . 6 . Full Trace Events 1 | . . . 1 . Feedback Events . | . . . . . Feedback Blocked . | . . . . . Robot Schematics Acquired 1 | . . . 1 . Robots Built . | . . . . . Authchips . | . . . . . Time . | . . . . . Total Robot Build Rating . | . . . . . Part Schematics Acquired 2 | . . . 2 . Parts Built . | . . . . . Authchips . | . . . . . Time . | . . . . . Total Part Build Rating . | . . . . . Part Studies Acquired . | . . . . . Parts Repaired . | . . . . . Time . | . . . . . Parts Recycled . | . . . . . Recycled Matter . | . . . . . Retrieved Matter . | . . . . . Retrieved Components . | . . . . . Parts Scanalyzed . | . . . . . Part Schematics Acquired . | . . . . . Parts Damaged . | . . . . . Bothacking | -11 -10 -10 -8 -8 ------------ Run | Yrd Mat Sub Rec Scr Used RIF Installer . | . . . . . Robots Hacked . | . . . . . Non-combat . | . . . . . Combat . | . . . . . Robot Hacks Applied . | . . . . . Relay Couplers Released . | . . . . . Fabnet Peak Effective % . | . . . . . Robots Rewired 11 | . . . 11 . Allies Hacked . | . . . . . Hacks Repelled . | . . . . . Allies | -11 -10 -10 -8 -8 -------- Run | Yrd Mat Sub Rec Scr Total Allies 11 | . . . 11 . Largest Group 11 | . . . 11 11 Highest-Rated Group 201 | . . . 201 201 Highest-Rated Ally 34 | . . . 34 34 Total Orders 26 | . . . 14 12 STAY 10 | . . . 3 7 FOLLOW 8 | . . . 3 5 TUNNEL 8 | . . . 8 . Ally Attacks 19 | . . . . 19 Total Damage 650 | . . . . 650 Kills 5 | . . . . 5 Allies Corrupted . | . . . . . Allies Melted 3 | . . . . 3 Intel | -11 -10 -10 -8 -8 ------- Run | Yrd Mat Sub Rec Scr Active Infowar (turns) 2662 | 11 1043 1608 . . Seismic 2662 | 11 1043 1608 . . Robot Analysis Total 8 | . . . 1 7 Derelict Logs Recovered 7 | . . 2 . 5 Drone Launches . | . . . . . Drone Recoveries . | . . . . . Exploration | -11 -10 -10 -8 -8 ------------- Run | Yrd Mat Sub Rec Scr Turns Passed 14210 | 86 1043 6233 2484 4364 Spaces Moved 5589 | 48 372 2165 850 2154 Core 29 | 20 . . . 9 Treads 4113 | . . 1972 850 1291 Legs 593 | 28 372 193 . . Wheels 854 | . . . . 854 Hover . | . . . . . Flight . | . . . . . Fastest Speed 50 | 50 120 160 240 125 Average Speed 189 | 133 141 171 240 197 Slowest Speed 1050 | 200 190 250 400 1050 Overloaded Moves . | . . . . . Propulsion Burnouts . | . . . . . Robots Hopped . | . . . . . Potential Cave-ins . | . . . . . Cave-ins Triggered . | . . . . . Exploration Rate (%) 60 | 4 48 67 98 87 Regions Visited 4 Branch Regions 3 Pre-discovered Areas 8 | . . 1 5 2 Known Exits Taken . | . . . . . Unknown Exits Taken 4 | 1 1 1 1 . Scrap Searched 10 | . . 3 . 7 Spaces Dug 14 | . . 7 4 3 Terrain Destroyed 58 | . 10 36 9 3 Melee 8 | . . 4 4 . Projectile 18 | . . 13 5 . AOE 29 | . 10 19 . . Terrain Rammed . | . . . . . Walls Destroyed . | . . . . . Machines Disabled . | . . . . . Actions | -11 -10 -10 -8 -8 --------- Run | Yrd Mat Sub Rec Scr Total 9000 | 61 837 4571 1263 2268 Wait 2918 | . 415 2262 200 41 Move 5585 | 47 371 2164 849 2154 Hop . | . . . . . Pick Up 67 | 4 11 21 2 29 Fast Attach 19 | 7 . 6 1 5 Attach 7 | . . 4 . 3 Detach 2 | . . 1 . 1 Swap 17 | . 3 12 1 1 Drop 55 | . 2 22 1 30 Fire 112 | 3 30 68 8 3 Melee 17 | . . 11 6 . Ram 1 | . . . . 1 Kick 5 | . 5 . . . Crush 5 | . . . 5 . Escape Stasis . | . . . . . Rewire 190 | . . . 190 . Trap . | . . . . . Miscellaneous . | . . . . . Route ------- -11/Scrapyard -10/Materials (discovered 3 exits: [*Mat x2] / *Sub) -10/Subcaves (discovered 3 exits: *Mat x2 / *Rec) -8/Recycling (discovered 2 exits: [*Fac] / *Scr) -8/Scraptown (discovered 2 exits: [*Fac x2]) History --------- Turn | Location | Event 27 | -11/Scrapyard | Discovered new exit (range 15) 87 | -11/Scrapyard | Entered Materials 317 | -10/Materials | Build established: Mutant 755 | -10/Materials | Discovered new exit (range 16) 861 | -10/Materials | Discovered new exit (range 13) 941 | -10/Materials | Discovered new exit (range 6) 1130 | -10/Materials | Entered Subcaves 1131 | -10/Subcaves | Approached by a straggling Scientist 1657 | -10/Subcaves | Identified exit to Materials 2265 | -10/Subcaves | Curiously followed by a Cobbler waking with a query about "LVR3C" 2266 | -10/Subcaves | Discovered exit to Materials (range 3) 2282 | -10/Subcaves | Shifting Twisted Machinery released Piercing Trap 2282 | -10/Subcaves | Shifting Twisted Machinery released Scrap Shield 2360 | -10/Subcaves | Visited Clippyterm 2365 | -10/Subcaves | Learned Research machine intel 2365 | -10/Subcaves | Learned Factory garrison access intel 2486 | -10/Subcaves | Visited 4L-MR0's lab 2490 | -10/Subcaves | Learned location of Zion (-6) 2503 | -10/Subcaves | Found Gun Armor 2754 | -10/Subcaves | Core integrity fell below 50% 4190 | -10/Subcaves | A Subdweller sparked back to life 4200 | -10/Subcaves | Core integrity fell below 20% 4210 | -10/Subcaves | Found Arachnoskeleton 4357 | -10/Subcaves | A swath of the cavern ceiling suddenly collapsed 6757 | -10/Subcaves | Discovered new exit (range 5) 7363 | -10/Subcaves | Entered Recycling 8367 | -8/Recycling | Discovered new exit (range 15) 9269 | -8/Recycling | Build established: Commander-Mutant 9767 | -8/Recycling | Scanned before Scraplab entrance 9803 | -8/Recycling | Entered Scraplab 9823 | -8/Recycling | Discovered new exit (range 3) 9847 | -8/Recycling | Entered Scraptown 9847 | -8/Scraptown | Accompanied by 11 allies 10169 | -8/Scraptown | Visited UFD Registry 10169 | -8/Scraptown | Registered with UFD as "Technobomber" 10356 | -8/Scraptown | Discovered new exit (range 3) 10643 | -8/Scraptown | Delivered Scrap Shield to a Scientist 11044 | -8/Scraptown | Scanned Subdweller tech in exchange for log data 11049 | -8/Scraptown | Learned location of 1 exit from Research 11051 | -8/Scraptown | Learned location of 1 exit from Lower Caves 11054 | -8/Scraptown | Learned location of Testing (-3) 11056 | -8/Scraptown | Learned Research stockpile data 11061 | -8/Scraptown | Learned location of Extension (-4) 11090 | -8/Scraptown | Discovered new exit (range 11) 11422 | -8/Scraptown | Heard Great Nut preacher, LISTEN AND RECITE! 11799 | -8/Scraptown | Visited The Evicted 11892 | -8/Scraptown | Visited Awakened 11976 | -8/Scraptown | Visited Fellowship of the Rings 12041 | -8/Scraptown | Visited Assassins FH 12104 | -8/Scraptown | Visited Red Mages 12118 | -8/Scraptown | Visited Shadow of the Wyrm 12250 | -8/Scraptown | Visited DA-N13 Charitable Foundation 12264 | -8/Scraptown | Found DCF Scrap (29 items) 12332 | -8/Scraptown | Visited Infowarlord's Domain 12370 | -8/Scraptown | Visited Curators Association 12413 | -8/Scraptown | Visited A0-MCA Data Center 12454 | -8/Scraptown | Visited Analyses Database 12516 | -8/Scraptown | Visited Supply Room 12560 | -8/Scraptown | Visited Science Guys 12641 | -8/Scraptown | Visited LU-1G1's Boring Crew 12815 | -8/Scraptown | Visited Junk Repository 12865 | -8/Scraptown | Visited Chapter 10 13140 | -8/Scraptown | Found Exp. Terrain Scan Processor 13247 | -8/Scraptown | Given a B- rating by A0-MCA 13251 | -8/Scraptown | Found A0-MCA's Component Scanner 13937 | -8/Scraptown | Met Optimus 13937 | -8/Scraptown | Accepted into 0bPrime 14024 | -8/Scraptown | Civil war broke out across Scraptown 14031 | -8/Scraptown | Found Prototype Special Weapon 14095 | -8/Scraptown | Found Master Drone Bay 14125 | -8/Scraptown | Lost 8 allies 14177 | -8/Scraptown | Identified LU-1G1's Laser Shovel 14181 | -8/Scraptown | Found ID Mask 14211 | -8/Scraptown | Destroyed by XK-WRO(j) with Overtuned Pulse Rifle Last Messages --------------- 14151_ Acquired Mak. Hacking Suite. 14152_ Acquired 10 matter. 14177_ Dropped Enh. Autogun. 14177_ Identified LU-1G1's Laser Shovel. 14178_ Acquired Tech Extrapolator. 14180_ Dropped Adv. Heat Sink. 14181_ Acquired ID Mask. 14182_ LU-1G1's Laser Shovel disintegrates Machine. 14186_ Acquired 10 matter. 14189_ LU-1G1's Laser Shovel disintegrates Machine. 14191_ LU-1G1's Laser Shovel disintegrates Wall. 14208_ LU-1G1's Laser Shovel disintegrates Earth. 14210_ Bolt penetrates Rogue 3a. 14210_ WS-NIG(x) suffers critical hit (Burn). 14210_ Rogue 3a destroyed. 14210_ Slammed into FE-4L7(p). Map ----- +----------------------------------------------------+ | | | | | | | | | | | | | | | | | | | | | | | | | ?????????????????????????????????????????????????? | | ?????????????????????????????????????????????????? | | ?????????????????????????????????????????????????? | | ?????????????????????????????????????????????????? | | ?????????????????????????????????????????????????? | | ?????????????????????????????????????????????????? | | ?????????????????????????????????????????????????? | | ?????????????????????????????????????????????????? | | ?????????????????????????????????????????????????? | | ?????????????????????####????????????????????????? | | ????????????????????## #####????????????????????? | | ????????????????????# # ##???????????????????? | | ????????????????????# % #???????????????????? | | ?????????????####???# #=h@ #???????????????????? | | ?????#?????### ##??# =%pj# #???????????????????? | | ?"" ##!!"###= !*#####=x%* ##???????????????????? | | ? !%!%!%[ % = ##????????????????????? | | ? %! =/= bY ! #?????????????????????? | | ??????####### ###### # ##?????????????????????? | | ????????????## "#????#####??????????????????????? | | ###??????????# "##??????????????????????????????? | | ""#??????????# #"##########?????????????????????? | | ""#?????????#" #" """""" "#?????????????????????? | | ""#?????????##[ # ="! ##??????????????????????? | | ""#??????????#%=#"" =% #??????????????????????? | | ""#?####??##?#!%#"" [ ! #??????????????????????? | | ""#?"""!??!#?#![#"""" #??????????????????????? | | #]"!! "" #?#=!#"" " #??????????????????????? | | " #] !! "" #?# #""" #??????????????????????? | | " #" "" #?# #"" #??????????????????????? | | "# " "#?# #" ##??????????????????????? | | # "### # #?????????????????????? | | ######## ### %/ #*#########?????????????????????? | | ######## ###" %!#=#########?????????????????????? | | """""""" """ % %"## !=!#?????????????????????? | | =*%! = * ["## !=#?????????????????????? | | = *%! *= "## ####?????????????????????? | | =[ %/== ==## []#?????????????????????? | +----------------------------------------------------+ Best States ------------- Heat Dissipation 25 Coolant Potential 50 Energy Generation 12 Energy Capacity 265 Matter Stores 300 Matter Capacity 300 Sight Range 16 Terrain Scan Density 10 Armor Coverage 225 Evasion (%) 55 Recoil Reduction 2 Trap Extractor Capacity 6 Item Schematics ----------------- Imp. Carbon-fiber Leg | -8/Recycling | Hacked Actuator Array | -8/Recycling | Hacked Robot Schematics ------------------ T-07 Excavator | -8/Recycling | Hacked Fabricated ------------ Nothing Repaired ---------- Nothing Studied --------- None Alien Tech Used ----------------- None Achievements -------------- None Challenges ------------ None Game ------ Seed DeepQuantumParser Manual? 0 Play Time 00:48:03 Cumulative 404.0 hours Start 2025.12.19 @ 16:47:28 End 2025.12.19 @ 17:38:18 Sessions 1 Manual Loads 0 Difficulty Rogue Special Mode None Game No. 269 Rogue 269 Adventurer 0 Explorer 0 Win Type - Total 26 Types 10/0/8/1/1/0/3/1/1/1 Lore% 84 Gallery% 80 Achievement% 70 Wizard Run 0 Options --------- Layout 1 ASCII 0 Keyboard 0 Movement Mouse Keybinds 0 Fullscreen 2 Font 24/Smallcaps Map View 50x35 Zoom Use 0% Tactical HUD 1 Map Filters NONE Filters NONE Steam 1 RUN: c0c31283-9738-4d6d-92dd-300b2ec27e69